bitfinex/quotes_BTCUSD_20250808
["timestamp","ask_amount","ask_price","bid_price","bid_amount"]
[1754653993535,0.00102725,117020.0,117010.0,1.07959707]
[1754653993762,4.725e-05,117020.0,117010.0,1.07959707]
[1754653997187,4.725e-05,117020.0,117010.0,0.6340236]
[1754653997188,0.00102725,117020.0,117010.0,0.6340236]
[1754653997397,0.34076072,117020.0,117010.0,0.55247777]
[1754653997558,0.02494725,117020.0,117010.0,0.68223777]
[1754653997991,0.02494725,117020.0,117010.0,0.99805124]
[1754653998182,0.02494725,117020.0,117010.0,1.01550026]
[1754653998943,0.02494725,117020.0,117010.0,0.88574026]
[1754653999253,0.02494725,117020.0,117010.0,1.01550026]
[1754654000249,0.00102725,117020.0,117010.0,1.01550026]
[1754654000581,0.00102725,117020.0,117010.0,1.04519026]
[1754654000924,0.00102725,117020.0,117010.0,0.72937679]
[1754654001148,0.00102725,117020.0,117010.0,1.04519026]
[1754654003246,0.00102725,117020.0,117010.0,0.72937679]
[1754654003455,0.00102725,117020.0,117010.0,1.04519026]
[1754654004826,0.00102725,117020.0,117010.0,0.72937679]
[1754654005027,0.00102725,117020.0,117010.0,1.04519026]
[1754654009464,4.725e-05,117020.0,117010.0,1.04519026]
[1754654012614,4.725e-05,117020.0,117010.0,0.72937679]
[1754654012820,4.725e-05,117020.0,117010.0,1.04519026]
[1754654014462,0.00102725,117020.0,117010.0,1.04519026]
[1754654015052,4.725e-05,117020.0,117010.0,1.04519026]
[1754654016653,4.725e-05,117020.0,117010.0,0.72937679]
[1754654016859,4.725e-05,117020.0,117010.0,1.04519026]
[1754654018137,4.725e-05,117020.0,117010.0,0.72937679]
[1754654018346,4.725e-05,117020.0,117010.0,1.04519026]
[1754654025109,4.725e-05,117020.0,117010.0,0.72937679]
[1754654025302,4.725e-05,117020.0,117010.0,1.04519026]
[1754654031182,4.725e-05,117020.0,117010.0,0.72937679]
[1754654031386,4.725e-05,117020.0,117010.0,1.04519026]
[1754654031932,4.725e-05,117020.0,117010.0,0.72937679]
[1754654032107,4.725e-05,117020.0,117010.0,1.04519026]
[1754654032350,4.725e-05,117020.0,117010.0,0.72937679]
[1754654032560,4.725e-05,117020.0,117010.0,1.04519026]
[1754654034749,4.725e-05,117020.0,117010.0,0.72937679]
[1754654034978,4.725e-05,117020.0,117010.0,1.04519026]
[1754654035966,4.725e-05,117020.0,117010.0,0.72937679]
[1754654036167,4.725e-05,117020.0,117010.0,1.04519026]
[1754654036750,4.725e-05,117020.0,117010.0,0.72937679]
[1754654036955,4.725e-05,117020.0,117010.0,1.04519026]
[1754654039297,4.725e-05,117020.0,117010.0,0.81949026]
[1754654039500,4.725e-05,117020.0,117010.0,0.77579026]
[1754654041286,4.725e-05,117020.0,117010.0,0.45997679]
[1754654041502,4.725e-05,117020.0,117010.0,0.77579026]
[1754654043761,4.725e-05,117020.0,117010.0,0.45997679]
[1754654043938,4.725e-05,117020.0,117010.0,0.77579026]
[1754654044341,4.725e-05,117020.0,117010.0,10.77579026]
[1754654046354,4.725e-05,117020.0,117010.0,10.45997679]
[1754654046573,4.725e-05,117020.0,117010.0,10.77579026]
[1754654049170,4.725e-05,117020.0,117010.0,10.45997679]
[1754654049338,4.725e-05,117020.0,117010.0,10.77579026]
[1754654054591,0.00102725,117020.0,117010.0,10.77579026]
[1754654055380,4.725e-05,117020.0,117010.0,10.77579026]
[1754654060265,4.725e-05,117020.0,117010.0,10.64603026]
[1754654060446,4.725e-05,117020.0,117010.0,10.77639026]
[1754654061468,4.725e-05,117020.0,117010.0,10.46057679]
[1754654061710,4.725e-05,117020.0,117010.0,10.77639026]
[1754654063228,4.725e-05,117020.0,117010.0,10.77663026]
[1754654063403,4.725e-05,117020.0,117010.0,10.46081679]
[1754654063618,4.725e-05,117020.0,117010.0,10.77663026]
[1754654073255,4.725e-05,117020.0,117010.0,11.09244373]
[1754654073482,4.725e-05,117020.0,117010.0,10.77663026]
[1754654079312,4.725e-05,117020.0,117010.0,10.46081679]
[1754654079533,4.725e-05,117020.0,117010.0,10.77663026]
[1754654081449,4.725e-05,117020.0,117010.0,10.46081679]
[1754654081728,4.725e-05,117020.0,117010.0,10.77663026]
[1754654091514,4.725e-05,117020.0,117010.0,10.46081679]
[1754654091717,4.725e-05,117020.0,117010.0,10.77663026]
[1754654093423,4.725e-05,117020.0,117010.0,11.09244373]
[1754654093805,4.725e-05,117020.0,117010.0,10.77663026]
[1754654094255,4.725e-05,117020.0,117010.0,11.09244373]
[1754654101583,4.725e-05,117020.0,117010.0,10.46081679]
[1754654101830,4.725e-05,117020.0,117010.0,11.09244373]
[1754654102887,4.725e-05,117020.0,117010.0,11.36184373]
[1754654106774,4.725e-05,117020.0,117010.0,11.38752573]
[1754654108695,4.725e-05,117020.0,117010.0,11.7033392]
[1754654108882,4.725e-05,117020.0,117010.0,11.38752573]
[1754654142477,4.725e-05,117020.0,117010.0,11.7033392]
[1754654142668,1e-08,117020.0,117010.0,11.7033392]
[1754654142865,1e-08,117020.0,117010.0,12.0433392]
[1754654143499,1e-08,117030.0,117020.0,0.18835997]
[1754654143702,1e-08,117030.0,117020.0,1.38097249]
[1754654144219,1e-08,117030.0,117020.0,1.40664949]
[1754654144828,1e-08,117030.0,117020.0,0.77602255]
[1754654145032,0.014912,117050.0,117040.0,0.18833076]
[1754654145239,0.01593924,117050.0,117040.0,0.67447287]
[1754654145589,0.03891924,117050.0,117040.0,0.69786287]
[1754654145832,0.03891924,117050.0,117040.0,1.32948981]
[1754654146047,0.01593924,117050.0,117040.0,1.33248981]
[1754654146251,0.01593924,117050.0,117040.0,1.33452981]
[1754654146754,0.03891924,117050.0,117040.0,1.03685981]
[1754654146973,0.01593924,117050.0,117040.0,1.06528981]
[1754654147168,0.01695924,117050.0,117040.0,1.06528981]
[1754654147415,0.01795924,117050.0,117040.0,1.06528981]
[1754654147628,0.01893924,117050.0,117040.0,1.06528981]
[1754654148041,0.01893924,117050.0,117040.0,0.43366287]
[1754654148243,0.01893924,117050.0,117040.0,1.06528981]
[1754654150479,0.01893924,117050.0,117040.0,0.43366287]
[1754654150667,0.01893924,117050.0,117040.0,1.06528981]
[1754654153650,0.01893924,117050.0,117040.0,1.03985981]
[1754654153889,0.04188924,117050.0,117040.0,1.03685981]
[1754654156227,0.04188924,117050.0,117040.0,1.30625981]
[1754654157083,0.04188924,117050.0,117040.0,1.33187981]
[1754654157736,0.01893924,117050.0,117040.0,1.33187981]
[1754654157973,0.01893924,117050.0,117040.0,1.33394981]
[1754654158851,0.01893924,117050.0,117040.0,1.33187981]
[1754654159936,0.04188924,117050.0,117040.0,0.67463287]
[1754654160141,0.04188924,117050.0,117040.0,1.30625981]
[1754654160311,0.04188924,117050.0,117040.0,0.67463287]
[1754654160532,0.04188924,117050.0,117040.0,1.30625981]
[1754654161132,0.04188924,117050.0,117040.0,0.99044634]
[1754654161884,0.04188924,117050.0,117040.0,1.30625981]
[1754654162474,0.04188924,117050.0,117040.0,1.33187981]
[1754654162834,0.04188924,117050.0,117040.0,1.30929981]
[1754654163038,0.01893924,117050.0,117040.0,1.33187981]
[1754654164823,0.01893924,117050.0,117040.0,1.33394981]
[1754654165583,0.01795924,117050.0,117040.0,1.33394981]
[1754654167296,0.01795924,117050.0,117040.0,1.01813634]
[1754654167555,0.01795924,117050.0,117040.0,1.33394981]
[1754654171389,0.01893924,117050.0,117040.0,1.01606634]
[1754654171563,0.04188924,117050.0,117040.0,1.01606634]
[1754654172097,0.04188924,117050.0,117040.0,0.99044634]
[1754654173444,0.04188924,117050.0,117040.0,0.67463287]
[1754654173851,0.04188924,117050.0,117040.0,0.99044634]
[1754654174676,0.01893924,117050.0,117040.0,1.01606634]
[1754654177703,0.02761444,117050.0,117040.0,1.01606634]
[1754654180342,0.01893924,117050.0,117040.0,1.01606634]
[1754654180859,0.01893924,117050.0,117040.0,1.01813634]
[1754654182470,0.01893924,117050.0,117040.0,0.70232287]
[1754654182729,0.01893924,117050.0,117040.0,1.01813634]
[1754654185298,0.01795924,117050.0,117040.0,1.01813634]
[1754654187054,0.01795924,117050.0,117040.0,1.33394981]
[1754654200585,0.01893924,117050.0,117040.0,1.01813634]
[1754654201036,0.01795924,117050.0,117040.0,1.01813634]
[1754654201600,0.01795924,117050.0,117040.0,1.33394981]
[1754654206096,0.01795924,117050.0,117040.0,0.70232287]
[1754654206285,0.01795924,117050.0,117040.0,1.33394981]
[1754654215266,0.01795924,117050.0,117040.0,0.70232287]
[1754654215413,0.01795924,117050.0,117040.0,1.33394981]
[1754654223588,0.01795924,117050.0,117040.0,0.70232287]
[1754654223893,0.01795924,117050.0,117040.0,1.33394981]
[1754654225107,0.01795924,117050.0,117040.0,0.70232287]
[1754654225283,0.01795924,117050.0,117040.0,1.01813634]
[1754654225655,0.01795924,117050.0,117040.0,1.33394981]
[1754654226439,0.01795924,117050.0,117040.0,1.01813634]
[1754654226741,0.01795924,117050.0,117040.0,1.33394981]
[1754654231469,0.01795924,117050.0,117040.0,0.70232287]
[1754654231631,0.01795924,117050.0,117040.0,1.33394981]
[1754654233521,0.01795924,117050.0,117040.0,0.70232287]
[1754654233765,0.01795924,117050.0,117040.0,1.33394981]
[1754654235295,0.01795924,117050.0,117040.0,0.70232287]
[1754654235504,0.01795924,117050.0,117040.0,1.01813634]
[1754654235802,0.01795924,117050.0,117040.0,0.70232287]
[1754654236096,0.01795924,117050.0,117040.0,1.01813634]
[1754654236309,0.01795924,117050.0,117040.0,0.70232287]
[1754654236861,0.01795924,117050.0,117040.0,1.01813634]
[1754654237654,0.01795924,117050.0,117040.0,0.74873634]
[1754654238156,0.01795924,117050.0,117040.0,0.43292287]
[1754654238309,0.01795924,117050.0,117040.0,0.74873634]
[1754654239701,0.01795924,117050.0,117040.0,0.43292287]
[1754654239861,0.01795924,117050.0,117040.0,0.74873634]
[1754654241303,0.01795924,117050.0,117040.0,0.43292287]
[1754654241650,0.01795924,117050.0,117040.0,0.74873634]
[1754654243703,0.01795924,117050.0,117040.0,0.43292287]
[1754654243919,0.01795924,117050.0,117040.0,0.74873634]
[1754654244391,0.01795924,117050.0,117040.0,1.06454981]
[1754654249554,0.01795924,117050.0,117040.0,0.43292287]
[1754654249715,0.01795924,117050.0,117040.0,1.06454981]
[1754654261949,0.01795924,117050.0,117040.0,1.06394981]
[1754654285045,0.01795924,117050.0,117040.0,0.43232287]
[1754654285329,0.01795924,117050.0,117040.0,1.06394981]
[1754654288915,0.01795924,117050.0,117040.0,1.08962581]
[1754654293378,0.01795924,117050.0,117040.0,1.40543928]
[1754654294399,0.01795924,117050.0,117040.0,1.08962581]
[1754654294606,0.01595924,117050.0,117040.0,1.08962581]
[1754654295015,0.01495924,117050.0,117040.0,1.08962581]
[1754654295390,0.01495924,117050.0,117040.0,1.40543928]
[1754654295944,0.01495924,117050.0,117040.0,1.08962581]
[1754654296117,0.01595924,117050.0,117040.0,1.08962581]
[1754654298412,0.01595924,117050.0,117040.0,1.69902581]
[1754654298413,1e-08,117050.0,117040.0,1.69902581]
[1754654298619,0.00024,117070.0,117060.0,0.18830157]
[1754654298823,0.00071241,117070.0,117060.0,1.35434409]
[1754654298999,0.00071241,117070.0,117060.0,1.38138409]
[1754654299196,0.00071241,117070.0,117060.0,1.06899362]
[1754654299768,0.00071241,117070.0,117060.0,0.43736668]
[1754654300012,0.00071241,117070.0,117060.0,0.75318015]
[1754654300213,0.00371241,117070.0,117060.0,0.75318015]
[1754654300420,0.00371241,117070.0,117060.0,1.06899362]
[1754654300598,0.00269241,117070.0,117060.0,1.06899362]
[1754654300807,0.00369241,117070.0,117060.0,1.06899362]
[1754654301345,0.00271241,117070.0,117060.0,1.06899362]
[1754654301542,0.00171241,117070.0,117060.0,1.06899362]
[1754654301841,0.00171241,117070.0,117060.0,0.43736668]
[1754654302046,0.00171241,117070.0,117060.0,1.06899362]
[1754654302835,0.00171241,117070.0,117060.0,0.75318015]
[1754654303684,0.00171241,117070.0,117060.0,1.06899362]
[1754654303990,0.00171241,117070.0,117060.0,1.33839362]
[1754654334381,0.00269241,117070.0,117060.0,1.33839362]
[1754654334619,0.00269241,117070.0,117060.0,0.70676668]
[1754654334805,0.00269241,117070.0,117060.0,1.02258015]
[1754654335755,0.00171241,117070.0,117060.0,1.02258015]
[1754654335959,0.00171241,117070.0,117060.0,1.33839362]
[1754654336110,0.00171241,117070.0,117060.0,1.02258015]
[1754654336896,0.00171241,117070.0,117060.0,1.33839362]
[1754654338851,0.00171241,117070.0,117060.0,1.02258015]
[1754654339275,0.00171241,117070.0,117060.0,1.33839362]
[1754654340634,0.00269241,117070.0,117060.0,1.33839362]
[1754654341386,0.00171241,117070.0,117060.0,0.70676668]
[1754654341637,0.00171241,117070.0,117060.0,1.33839362]
[1754654347192,0.00269241,117070.0,117060.0,1.02246015]
[1754654352778,0.00269241,117070.0,117060.0,0.70664668]
[1754654352945,0.00269241,117070.0,117060.0,1.02246015]
[1754654355637,0.00171241,117070.0,117060.0,1.02246015]
[1754654357822,0.31850588,117070.0,117060.0,0.55107668]
[1754654358046,0.34193588,117070.0,117060.0,0.25771466]
[1754654358239,0.34193588,117070.0,117060.0,0.38727466]
[1754654359013,0.34193588,117070.0,117060.0,0.40472368]
[1754654359208,0.34093588,117070.0,117060.0,0.40472368]
[1754654359619,0.34193588,117070.0,117060.0,0.40472368]
[1754654362873,0.34293588,117070.0,117060.0,0.40472368]
[1754654364824,0.34293588,117070.0,117060.0,0.27516368]
[1754654365044,0.34293588,117070.0,117060.0,0.40472368]
[1754654365246,0.31950588,117070.0,117060.0,0.43161368]
[1754654374379,0.31950588,117070.0,117060.0,0.43363368]
[1754654374684,0.00369241,117070.0,117060.0,0.43363368]
[1754654374843,0.00369241,117070.0,117060.0,0.74944715]
[1754654375025,0.00271241,117070.0,117060.0,0.43363368]
[1754654375231,0.31852588,117070.0,117060.0,0.43363368]
[1754654379348,0.00271241,117070.0,117060.0,0.43363368]
[1754654384999,0.31852588,117070.0,117060.0,0.43363368]
[1754654387488,0.00271241,117070.0,117060.0,0.43363368]
[1754654387680,0.31852588,117070.0,117060.0,0.43363368]
[1754654400665,0.00271241,117070.0,117060.0,0.43363368]
[1754654400874,0.31852588,117070.0,117060.0,0.43363368]
[1754654401268,0.00271241,117070.0,117060.0,0.43363368]
[1754654401463,0.31852588,117070.0,117060.0,0.43363368]
[1754654402197,0.85304384,117070.0,117060.0,0.18830157]
[1754654402440,1.16885731,117070.0,117060.0,0.31778157]
[1754654402763,0.85304384,117070.0,117060.0,0.31778157]
[1754654402961,0.70788388,117070.0,117060.0,0.31778157]
[1754654403150,0.70688388,117070.0,117060.0,0.31778157]
[1754654403400,0.39307041,117070.0,117060.0,0.31778157]
[1754654403598,0.70888388,117070.0,117060.0,0.31778157]
[1754654404217,0.70788388,117070.0,117060.0,0.31778157]
[1754654404695,0.70988388,117070.0,117060.0,0.31778157]
[1754654405531,0.39407041,117070.0,117060.0,0.31778157]
[1754654405788,0.70988388,117070.0,117060.0,0.31778157]
[1754654406716,0.88072184,117070.0,117060.0,0.31778157]
[1754654407851,0.70988388,117070.0,117060.0,0.31778157]
[1754654409242,0.88072184,117070.0,117060.0,0.31778157]
[1754654410908,0.70988388,117070.0,117060.0,0.31778157]
[1754654412865,0.88072184,117070.0,117060.0,0.31778157]
[1754654415287,0.88072184,117070.0,117060.0,0.18830157]
[1754654415470,0.88072184,117070.0,117060.0,0.31778157]
[1754654416846,0.51941649,117060.0,117040.0,0.17088095]
[1754654417064,0.85792996,117060.0,117050.0,0.12948]
[1754654417250,0.85890996,117060.0,117050.0,0.12948]
[1754654418022,0.88459196,117060.0,117050.0,0.12948]
[1754654418229,1.20040543,117060.0,117050.0,0.12948]
[1754654418449,1.20140543,117060.0,117050.0,0.12948]
[1754654419099,1.20240543,117060.0,117050.0,0.12948]
[1754654419341,1.20140543,117060.0,117050.0,0.12948]
[1754654419762,1.20240543,117060.0,117050.0,0.12948]
[1754654420968,1.20240543,117060.0,117050.0,0.30034715]
[1754654421169,1.20240543,117060.0,117050.0,0.32479715]
[1754654421488,1.20240543,117060.0,117050.0,0.15393]
[1754654421695,1.20240543,117060.0,117050.0,0.32479715]
[1754654421890,1.20240543,117060.0,117050.0,0.32804715]
[1754654423810,1.17970543,117060.0,117050.0,0.32804715]
[1754654424023,1.17970543,117060.0,117050.0,0.15718]
[1754654424447,0.17086715,117050.0,117040.0,0.21602997]
[1754654424670,0.48668062,117050.0,117040.0,0.34758997]
[1754654425239,0.51236162,117050.0,117040.0,0.34758997]
[1754654425808,0.51236162,117050.0,117040.0,0.34858997]
[1754654427102,0.51236162,117050.0,117040.0,0.34758997]
[1754654427527,0.51436162,117050.0,117040.0,0.34758997]
[1754654427895,0.51636162,117050.0,117040.0,0.34758997]
[1754654428097,0.51734162,117050.0,117040.0,0.34758997]
[1754654431303,0.51636162,117050.0,117040.0,0.34758997]
[1754654431730,0.51734162,117050.0,117040.0,0.34758997]
[1754654437154,0.88199162,117050.0,117040.0,0.12948]
[1754654439044,0.88199162,117050.0,117040.0,0.30036174]
[1754654439239,0.85734162,117050.0,117040.0,0.32806174]
[1754654439511,0.85734162,117050.0,117040.0,0.33014174]
[1754654446369,0.85636162,117050.0,117040.0,0.33014174]
[1754654449562,0.54054815,117050.0,117040.0,0.33014174]
[1754654449769,0.85636162,117050.0,117040.0,0.33014174]
[1754654451747,0.54054815,117050.0,117040.0,0.33014174]
[1754654451955,0.85636162,117050.0,117040.0,0.33014174]
[1754654458992,0.98584162,117050.0,117040.0,0.33014174]
[1754654459532,0.98682162,117050.0,117040.0,0.33014174]
[1754654460195,1.01148162,117050.0,117040.0,0.32806174]
[1754654460801,1.01148162,117050.0,117040.0,0.30036174]
[1754654461007,1.01148162,117050.0,117040.0,0.17088174]
[1754654463934,1.01148162,117050.0,117040.0,0.19697174]
[1754654464233,0.98682162,117050.0,117040.0,0.19697174]
[1754654465408,1.01148162,117050.0,117040.0,0.17406174]
[1754654465809,1.01148162,117050.0,117040.0,0.19697174]
[1754654466213,0.98682162,117050.0,117040.0,0.19697174]
[1754654468242,0.67100815,117050.0,117040.0,0.19697174]
[1754654468384,0.98682162,117050.0,117040.0,0.19697174]
[1754654471567,0.98682162,117050.0,117040.0,0.19909174]
[1754654473034,0.98682162,117050.0,117040.0,0.19697174]
[1754654474728,0.98682162,117050.0,117040.0,0.19909174]
[1754654477102,0.85734162,117050.0,117040.0,0.19909174]
[1754654486965,0.54152815,117050.0,117040.0,0.19909174]
[1754654487169,0.85734162,117050.0,117040.0,0.19909174]
[1754654495995,0.85734162,117050.0,117040.0,0.19697174]
[1754654496191,0.88079162,117050.0,117040.0,0.19697174]
[1754654496440,0.88079162,117050.0,117040.0,0.17406174]
[1754654497636,1.01019162,117050.0,117040.0,0.19696174]
[1754654498925,0.98674162,117050.0,117040.0,0.19696174]
[1754654499469,0.85734162,117050.0,117040.0,0.19696174]
[1754654500546,0.54152815,117050.0,117040.0,0.19696174]
[1754654500763,0.85734162,117050.0,117040.0,0.19696174]
[1754654502956,0.85734162,117050.0,117040.0,0.19893174]
[1754654504341,0.54152815,117050.0,117040.0,0.19893174]
[1754654504564,0.85734162,117050.0,117040.0,0.19893174]
[1754654505518,0.85734162,117050.0,117040.0,0.19696174]
[1754654505924,0.88079162,117050.0,117040.0,0.19696174]
[1754654506360,0.85734162,117050.0,117040.0,0.19696174]
[1754654506582,0.88079162,117050.0,117040.0,0.19696174]
[1754654507205,0.85734162,117050.0,117040.0,0.19696174]
[1754654508981,0.85734162,117050.0,117040.0,0.02805]
[1754654514526,0.85734162,117050.0,117040.0,0.15745]
[1754654516519,0.98674162,117050.0,117040.0,0.15745]
[1754654520563,1.01143162,117050.0,117040.0,0.1294]
[1754654521003,1.01143162,117050.0,117030.0,0.17365902]
[1754654521004,0.17088174,117040.0,117030.0,0.17365902]
[1754654521175,0.48669521,117040.0,117030.0,0.17561902]
[1754654521608,0.51237921,117040.0,117030.0,0.17561902]
[1754654522265,0.52207673,117040.0,117030.0,0.17561902]
[1754654522800,0.52307673,117040.0,117030.0,0.17561902]
[1754654526855,0.8398702,117040.0,117030.0,0.15817]
[1754654529089,0.8398702,117040.0,117030.0,0.32906635]
[1754654532346,0.8398702,117040.0,117030.0,0.15817]
[1754654532890,0.8398702,117040.0,117030.0,0.32906635]
[1754654534500,0.52405673,117040.0,117030.0,0.32906635]
[1754654534711,0.52307673,117040.0,117030.0,0.32906635]
[1754654538130,0.20726326,117040.0,117030.0,0.32906635]
[1754654538317,0.52307673,117040.0,117030.0,0.32906635]
[1754654540942,0.20726326,117040.0,117030.0,0.32906635]
[1754654541141,0.52307673,117040.0,117030.0,0.32906635]
[1754654544689,0.20726326,117040.0,117030.0,0.32906635]
[1754654544915,0.52307673,117040.0,117030.0,0.32906635]
[1754654548209,0.52307673,117040.0,117030.0,0.15817]
[1754654548409,0.8642102,117040.0,117030.0,0.1294]
[1754654548867,0.8642102,117040.0,117020.0,0.20638649]
[1754654549033,0.48670982,117030.0,117020.0,0.22383551]
[1754654549250,0.48670982,117030.0,117020.0,0.35527551]
[1754654550231,0.48670982,117030.0,117020.0,0.35632275]
[1754654550437,0.51239482,117030.0,117020.0,0.35632275]
[1754654552684,0.51239482,117030.0,117020.0,0.35532275]
[1754654552855,0.51439482,117030.0,117020.0,0.35532275]
[1754654553384,0.51439482,117030.0,117020.0,0.34677721]
[1754654554646,0.51639482,117030.0,117020.0,0.34677721]
[1754654556505,0.51737482,117030.0,117020.0,0.32932819]
[1754654557187,0.51737482,117030.0,117020.0,0.15841724]
[1754654559059,0.51737482,117030.0,117020.0,0.32932819]
[1754654559643,0.51639482,117030.0,117020.0,0.32932819]
[1754654559847,0.20058135,117030.0,117020.0,0.32932819]
[1754654560144,0.51639482,117030.0,117020.0,0.32932819]
[1754654562596,0.51639482,117030.0,117020.0,0.02905724]
[1754654562799,0.54171482,117030.0,117020.0,0.13235724]
[1754654563002,0.54171482,117030.0,117020.0,0.12940724]
[1754654563523,0.51737482,117030.0,117020.0,0.15633724]
[1754654564573,0.64673482,117030.0,117020.0,0.15633724]
[1754654567390,0.64673482,117030.0,117020.0,0.02697724]
[1754654568173,0.67107482,117030.0,117020.0,0.00299724]
[1754654570093,0.67107482,117030.0,117020.0,4.724e-05]
[1754654570362,1.32688829,117030.0,117020.0,4.724e-05]
[1754654571622,1.32749829,117030.0,117020.0,4.724e-05]
[1754654572382,1.32549829,117030.0,117020.0,4.724e-05]
[1754654572584,1.4103604,117030.0,117020.0,4.724e-05]
[1754654573021,1.4143604,117030.0,117020.0,4.724e-05]
[1754654573237,1.4173604,117030.0,117020.0,4.724e-05]
[1754654573956,1.4133604,117030.0,117020.0,4.724e-05]
[1754654574531,1.4103604,117030.0,117020.0,4.724e-05]
[1754654574902,1.4133604,117030.0,117020.0,4.724e-05]
[1754654575359,1.4173604,117030.0,117020.0,4.724e-05]
[1754654581038,1.4167504,117030.0,117020.0,4.724e-05]
[1754654582171,1.4173604,117030.0,117020.0,4.724e-05]
[1754654585717,6.83892212,117030.0,117020.0,4.724e-05]
[1754654586070,6.52310865,117030.0,117020.0,4.724e-05]
[1754654592502,6.52249865,117030.0,117020.0,4.724e-05]
[1754654596272,6.39313865,117030.0,117020.0,4.724e-05]
[1754654596720,6.52245865,117030.0,117020.0,4.724e-05]
[1754654597292,6.52245865,117030.0,117020.0,0.02302724]
[1754654597703,6.52245865,117030.0,117020.0,4.724e-05]
[1754654601510,5.65037746,117030.0,117020.0,0.02850724]
[1754654601729,0.63044346,117030.0,117020.0,0.02850724]
[1754654601980,0.94625693,117030.0,117020.0,0.02850724]
[1754654602151,0.85939482,117030.0,117020.0,0.02850724]
[1754654602369,0.98871482,117030.0,117020.0,0.02850724]
[1754654606163,0.85939482,117030.0,117020.0,0.02850724]
[1754654606510,0.98871482,117030.0,117020.0,0.02850724]
[1754654606715,0.98871482,117030.0,117020.0,0.19941819]
[1754654608723,0.98871482,117030.0,117020.0,0.02850724]
[1754654609082,0.98871482,117030.0,117020.0,0.19941819]
[1754654609282,0.98871482,117030.0,117020.0,0.02850724]
[1754654611684,0.98871482,117030.0,117020.0,0.19941819]
[1754654612163,0.98871482,117030.0,117020.0,0.02850724]
[1754654613594,0.98871482,117030.0,117020.0,0.19941819]
[1754654614380,0.98871482,117030.0,117020.0,0.02850724]
[1754654621931,0.98871482,117030.0,117020.0,0.19941819]
[1754654623277,0.98871482,117030.0,117020.0,0.02850724]
[1754654623697,0.98871482,117030.0,117020.0,0.19941819]
[1754654626539,0.98858591,117030.0,117020.0,0.19941819]
[1754654633098,0.98858591,117030.0,117020.0,0.02844343]
[1754654633680,0.98956591,117030.0,117020.0,0.02844343]
[1754654636397,0.98956591,117030.0,117020.0,0.02646343]
[1754654636771,1.01280591,117030.0,117020.0,0.00305]
[1754654637186,1.01280591,117030.0,117020.0,0.02668]
[1754654638222,0.98956591,117030.0,117020.0,0.02668]
[1754654640666,0.17091095,117020.0,117010.0,10.19778499]
[1754654640868,0.61600442,117020.0,117010.0,10.19778499]
[1754654641308,0.64169442,117020.0,117010.0,10.19778499]
[1754654641741,0.95750789,117020.0,117010.0,10.02686]
[1754654641968,0.96448789,117020.0,117010.0,10.02686]
[1754654642943,0.64769442,117020.0,117010.0,10.19778556]
[1754654644623,0.64769442,117020.0,117010.0,10.02686]
[1754654646149,0.96350789,117020.0,117010.0,10.02686]
[1754654646338,0.96448789,117020.0,117010.0,10.02686]
[1754654647499,0.96350789,117020.0,117010.0,10.02686]
[1754654648305,0.64769442,117020.0,117010.0,10.02686]
[1754654655223,0.96350789,117020.0,117010.0,10.02686]
[1754654659272,0.64769442,117020.0,117010.0,10.19778556]
[1754654659403,0.64769442,117020.0,117010.0,10.02686]
[1754654659840,0.64769442,117020.0,117010.0,10.19778556]
[1754654660821,0.51841442,117020.0,117010.0,10.19778556]
[1754654661057,0.64769442,117020.0,117010.0,10.19778556]
[1754654664271,0.64769442,117020.0,117010.0,10.02686]
[1754654664699,0.64769442,117020.0,117010.0,10.19778556]
[1754654665129,0.64769442,117020.0,117010.0,10.02686]
[1754654665864,0.64769442,117020.0,117010.0,10.19778556]
[1754654666694,0.64769442,117020.0,117010.0,10.02686]
[1754654669636,0.33188095,117020.0,117010.0,10.02686]
[1754654669874,0.64769442,117020.0,117010.0,10.02686]
[1754654671199,0.64760764,117020.0,117010.0,10.02681676]
[1754654671962,0.64760764,117020.0,117010.0,10.19774232]
[1754654672218,0.64760764,117020.0,117010.0,10.02681676]
[1754654687331,0.64760764,117020.0,117010.0,10.19774232]
[1754654689988,0.64760764,117020.0,117010.0,10.02681676]
[1754654690779,0.96342111,117020.0,117010.0,10.02681676]
[1754654691202,0.96440111,117020.0,117010.0,10.02681676]
[1754654693201,0.96342111,117020.0,117010.0,10.02681676]
[1754654696374,0.96440111,117020.0,117010.0,10.02681676]
[1754654698314,0.33277417,117020.0,117010.0,10.02681676]
[1754654698481,0.96440111,117020.0,117010.0,10.02681676]
[1754654699889,0.96342111,117020.0,117010.0,10.02681676]
[1754654717274,1.30342111,117020.0,117010.0,10.02681676]
[1754654721312,0.98760764,117020.0,117010.0,10.02681676]
[1754654722292,1.30342111,117020.0,117010.0,10.02681676]
[1754654724247,0.98760764,117020.0,117010.0,10.02681676]
[1754654726936,1.30342111,117020.0,117010.0,10.02681676]
[1754654738683,1.30440111,117020.0,117010.0,10.02681676]
[1754654742831,1.39126322,117020.0,117010.0,9.99995676]
[1754654743039,1.41596322,117020.0,117010.0,9.99995676]
[1754654748341,1.61596322,117020.0,117010.0,9.99995676]
[1754654748811,1.64187419,117020.0,117010.0,9.99995676]
[1754654749274,1.61717419,117020.0,117010.0,10.00315676]
[1754654749492,1.61717419,117020.0,117010.0,10.02796676]
[1754654749847,1.61619419,117020.0,117010.0,10.02796676]
[1754654750083,1.27434975,117020.0,117010.0,10.02796676]
[1754654750298,0.98748764,117020.0,117010.0,10.02796676]
[1754654750736,1.30330111,117020.0,117010.0,10.02796676]
[1754654751154,0.67167417,117020.0,117010.0,10.02796676]
[1754654751369,1.30330111,117020.0,117010.0,10.02796676]
[1754654763656,1.30330111,117020.0,117010.0,10.02751676]
[1754654774121,1.39016322,117020.0,117010.0,10.02751676]
[1754654782642,0.75853628,117020.0,117010.0,10.02751676]
[1754654782872,1.39016322,117020.0,117010.0,10.02751676]
[1754654786705,1.41641006,117020.0,117010.0,10.02751676]
[1754654787812,1.39016322,117020.0,117010.0,10.02751676]
[1754654788003,1.76451322,117020.0,117010.0,10.00298676]
[1754654788155,2.05695669,117020.0,117010.0,10.02630676]
[1754654789353,1.74114322,117020.0,117010.0,10.02630676]
[1754654790684,1.7495901,117020.0,117010.0,10.02630676]
[1754654792827,2.06540357,117020.0,117010.0,10.02630676]
[1754654793742,2.08877357,117020.0,117010.0,9.99995676]
[1754654794192,2.06540357,117020.0,117010.0,10.02644676]
[1754654795727,2.08877357,117020.0,117010.0,10.02644676]
[1754654796153,2.11382563,117020.0,117010.0,10.02644676]
[1754654796577,2.11382563,117020.0,117010.0,9.99995676]
[1754654796822,2.16932865,117020.0,117010.0,9.38367466]
[1754654797052,8.43096216,117020.0,117010.0,8.59930009]
[1754654797281,8.43094185,117020.0,117010.0,8.25785648]
[1754654797552,8.44839087,117020.0,117010.0,8.14837787]
[1754654797775,8.44839087,117020.0,117010.0,7.80702295]
[1754654797998,9.14539087,117020.0,117010.0,7.7238446]
[1754654798212,9.13193138,117020.0,117010.0,7.53473245]
[1754654798424,8.94737772,117020.0,117010.0,6.67898442]
[1754654798633,8.94237772,117020.0,117010.0,6.67898442]
[1754654798846,8.94737772,117020.0,117010.0,6.37693016]
[1754654799070,8.95437772,117020.0,117010.0,6.37693016]
[1754654799288,8.92393138,117020.0,117010.0,6.04407085]
[1754654799464,8.93193138,117020.0,117010.0,5.87704072]
[1754654799669,8.93893138,117020.0,117010.0,5.87704072]